[Event "*** Titled Tuesday Blitz"]
[Site "Chess.com"]
[Date "2020.04.28"]
[Round "4"]
[White "White_Ghost"]
[Black "mjray79"]
[Result "1-0"]
[WhiteElo "2453"]
[BlackElo "2256"]
[TimeControl "180+1"]
[EndTime "10:41:13 PDT"]
[Termination "White_Ghost won by checkmate"]

1. d4 {[%clk 0:03:00.9]} 1... Nf6 {[%clk 0:02:59.4]} 2. c4 {[%clk 0:02:59.4]}
2... g6 {[%clk 0:02:59.5]} 3. g3 {[%clk 0:02:58.6]} 3... Bg7 {[%clk 0:02:59.9]}
4. Bg2 {[%clk 0:02:59]} 4... O-O {[%clk 0:03:00.8]} 5. Nc3 {[%clk 0:02:59.5]}
5... d6 {[%clk 0:03:01.6]} 6. Nf3 {[%clk 0:02:59.9]} 6... Nc6 {[%clk 0:03:01.9]}
7. O-O {[%clk 0:02:59.2]} 7... a6 {[%clk 0:03:02.3]} 8. e4 {[%clk 0:02:54.6]}
8... Bg4 {[%clk 0:03:01.9]} 9. h3 {[%clk 0:02:48.4]} 9... Bxf3 {[%clk
0:03:01.6]} 10. Bxf3 {[%clk 0:02:49.3]} 10... e5 {[%clk 0:03:02.1]} 11. d5
{[%clk 0:02:48.3]} 11... Ne7 {[%clk 0:03:02]} 12. Bg2 {[%clk 0:02:46.7]} 12...
Nd7 {[%clk 0:02:58.6]} 13. Be3 {[%clk 0:02:22.4]} 13... f5 {[%clk 0:02:57.3]}
14. exf5 {[%clk 0:02:16.8]} 14... gxf5 {[%clk 0:02:58.2]} 15. f4 {[%clk
0:02:14.7]} 15... e4 {[%clk 0:02:55]} 16. Bd4 {[%clk 0:02:11.9]} 16... a5 {[%clk
0:02:52.2]} 17. Bxg7 {[%clk 0:02:10.9]} 17... Kxg7 {[%clk 0:02:53.1]} 18. Qd4+
{[%clk 0:02:10.9]} 18... Nf6 {[%clk 0:02:45]} 19. g4 {[%clk 0:02:10.2]} 19... c5
{[%clk 0:02:33.5]} 20. Qd1 {[%clk 0:02:07]} 20... Qd7 {[%clk 0:02:29.3]} 21. g5
{[%clk 0:02:04.1]} 21... Nfg8 {[%clk 0:02:25.2]} 22. Qd2 {[%clk 0:01:43.1]}
22... Ng6 {[%clk 0:02:22.2]} 23. Nd1 {[%clk 0:01:38.2]} 23... h6 {[%clk
0:02:20.9]} 24. Qf2 {[%clk 0:01:19.2]} 24... hxg5 {[%clk 0:02:08.1]} 25. fxg5
{[%clk 0:01:20.1]} 25... f4 {[%clk 0:02:01.2]} 26. Bxe4 {[%clk 0:01:17.6]} 26...
Qxh3 {[%clk 0:02:00.8]} 27. Qg2 {[%clk 0:00:58.2]} 27... Qxg2+ {[%clk
0:01:46.3]} 28. Bxg2 {[%clk 0:00:56.1]} 28... Rae8 {[%clk 0:01:47.2]} 29. Nc3
{[%clk 0:00:53.3]} 29... Re5 {[%clk 0:01:45.1]} 30. Kf2 {[%clk 0:00:42.8]} 30...
Rxg5 {[%clk 0:01:39]} 31. Ne4 {[%clk 0:00:41.7]} 31... Re5 {[%clk 0:01:30.6]}
32. Nxd6 {[%clk 0:00:39.7]} 32... Nh4 {[%clk 0:01:11.9]} 33. Rg1 {[%clk
0:00:37]} 33... Rg5 {[%clk 0:00:48.1]} 34. Bh3 {[%clk 0:00:32.4]} 34... Rxg1
{[%clk 0:00:45.3]} 35. Rxg1+ {[%clk 0:00:31.8]} 35... Kh6 {[%clk 0:00:45.7]} 36.
Be6 {[%clk 0:00:29.1]} 36... Nf6 {[%clk 0:00:45]} 37. Nf5+ {[%clk 0:00:14.4]}
37... Nxf5 {[%clk 0:00:38]} 38. Bxf5 {[%clk 0:00:15.3]} 38... Nh5 {[%clk
0:00:37.6]} 39. Rg6+ {[%clk 0:00:14.2]} 39... Kh7 {[%clk 0:00:36.2]} 40. Rf6+
{[%clk 0:00:14.4]} 40... Kg7 {[%clk 0:00:34.6]} 41. Rxf8 {[%clk 0:00:14.9]}
41... Kxf8 {[%clk 0:00:35.5]} 42. Kf3 {[%clk 0:00:15.4]} 42... Kf7 {[%clk
0:00:34.3]} 43. Bg4 {[%clk 0:00:15.3]} 43... Nf6 {[%clk 0:00:31.4]} 44. Kxf4
{[%clk 0:00:16.2]} 44... Kg6 {[%clk 0:00:29.6]} 45. Bf5+ {[%clk 0:00:16]} 45...
Kf7 {[%clk 0:00:29.1]} 46. Ke5 {[%clk 0:00:16.6]} 46... Ne8 {[%clk 0:00:22.4]}
47. d6 {[%clk 0:00:16.4]} 47... Nxd6 {[%clk 0:00:22.1]} 48. Kxd6 {[%clk
0:00:16.3]} 48... Kf6 {[%clk 0:00:23]} 49. Kxc5 {[%clk 0:00:16.7]} 49... Kxf5
{[%clk 0:00:23.9]} 50. Kb6 {[%clk 0:00:17.6]} 50... Ke4 {[%clk 0:00:24.8]} 51.
Kxb7 {[%clk 0:00:18.3]} 51... Kd3 {[%clk 0:00:25.7]} 52. c5 {[%clk 0:00:18.3]}
52... Kc2 {[%clk 0:00:26.6]} 53. c6 {[%clk 0:00:19.2]} 53... Kxb2 {[%clk
0:00:27.5]} 54. c7 {[%clk 0:00:20.1]} 54... Kxa2 {[%clk 0:00:28.4]} 55. c8=Q
{[%clk 0:00:21]} 55... Kb1 {[%clk 0:00:29.3]} 56. Qc4 {[%clk 0:00:20.5]} 56...
a4 {[%clk 0:00:30.2]} 57. Qxa4 {[%clk 0:00:21.3]} 57... Kb2 {[%clk 0:00:28.9]}
58. Qc4 {[%clk 0:00:21.4]} 58... Kb1 {[%clk 0:00:29.8]} 59. Qc3 {[%clk
0:00:20.5]} 59... Ka2 {[%clk 0:00:29.1]} 60. Qb4 {[%clk 0:00:20.7]} 60... Ka1
{[%clk 0:00:27.7]} 61. Kc6 {[%clk 0:00:21.6]} 61... Ka2 {[%clk 0:00:28]} 62. Kc5
{[%clk 0:00:22.5]} 62... Ka1 {[%clk 0:00:28.8]} 63. Kc4 {[%clk 0:00:23.4]} 63...
Ka2 {[%clk 0:00:29.7]} 64. Kc3 {[%clk 0:00:24.3]} 64... Ka1 {[%clk 0:00:30.6]}
65. Qb2# {[%clk 0:00:25.2]} 1-0

[Event "*** Titled Tuesday Blitz"]
[Site "Chess.com"]
[Date "2020.04.28"]
[Round "4"]
[White "Guenplen"]
[Black "GMKrikor"]
[Result "0-1"]
[WhiteElo "2943"]
[BlackElo "2731"]
[TimeControl "180+1"]
[EndTime "10:41:14 PDT"]
[Termination "GMKrikor won on time"]

1. d4 {[%clk 0:03:00.9]} 1... Nf6 {[%clk 0:02:58.5]} 2. Bf4 {[%clk 0:03:00.3]}
2... c5 {[%clk 0:02:57.3]} 3. d5 {[%clk 0:03:00.5]} 3... d6 {[%clk 0:02:56.7]}
4. Nc3 {[%clk 0:02:58.4]} 4... e5 {[%clk 0:02:56.6]} 5. Bd2 {[%clk 0:02:58.3]}
5... e4 {[%clk 0:02:48.8]} 6. h3 {[%clk 0:02:57.2]} 6... a6 {[%clk 0:02:45.2]}
7. a4 {[%clk 0:02:56.7]} 7... g6 {[%clk 0:02:42.4]} 8. Bf4 {[%clk 0:02:45.8]}
8... Nh5 {[%clk 0:02:40.2]} 9. Bc1 {[%clk 0:02:35.2]} 9... f5 {[%clk 0:02:38.7]}
10. e3 {[%clk 0:02:25.6]} 10... Bg7 {[%clk 0:02:37.1]} 11. Be2 {[%clk
0:02:20.9]} 11... Nf6 {[%clk 0:02:37.1]} 12. h4 {[%clk 0:02:20.8]} 12... Nbd7
{[%clk 0:02:36.8]} 13. Nh3 {[%clk 0:02:20.9]} 13... Ne5 {[%clk 0:02:37.1]} 14.
Nf4 {[%clk 0:02:21]} 14... Qe7 {[%clk 0:02:33.3]} 15. a5 {[%clk 0:02:20.1]}
15... Bd7 {[%clk 0:02:32.6]} 16. Na4 {[%clk 0:02:17.8]} 16... O-O {[%clk
0:02:24.7]} 17. Nb6 {[%clk 0:02:17.5]} 17... Rae8 {[%clk 0:02:19.4]} 18. Bd2
{[%clk 0:02:12.9]} 18... Nfg4 {[%clk 0:02:15.2]} 19. Bc3 {[%clk 0:02:07.3]}
19... Bh6 {[%clk 0:02:09.7]} 20. g3 {[%clk 0:01:44.8]} 20... Bb5 {[%clk
0:01:53.2]} 21. h5 {[%clk 0:01:23.9]} 21... Bxe2 {[%clk 0:01:28]} 22. Qxe2
{[%clk 0:01:24.8]} 22... Nf3+ {[%clk 0:01:28]} 23. Kd1 {[%clk 0:01:24.9]} 23...
g5 {[%clk 0:01:25.4]} 24. Ne6 {[%clk 0:01:24.2]} 24... Rf7 {[%clk 0:01:06.1]}
25. Kc1 {[%clk 0:01:23.8]} 25... Rb8 {[%clk 0:00:52]} 26. Kb1 {[%clk 0:01:22.2]}
26... Qe8 {[%clk 0:00:51.8]} 27. Ra3 {[%clk 0:00:56.3]} 27... Re7 {[%clk
0:00:51.1]} 28. Rb3 {[%clk 0:00:53.2]} 28... Rxe6 {[%clk 0:00:50.8]} 29. dxe6
{[%clk 0:00:54.1]} 29... Qxe6 {[%clk 0:00:51.7]} 30. Rd1 {[%clk 0:00:53.6]}
30... Bf8 {[%clk 0:00:48.8]} 31. Nd5 {[%clk 0:00:49.6]} 31... h6 {[%clk
0:00:46.6]} 32. Rb6 {[%clk 0:00:43.4]} 32... Kf7 {[%clk 0:00:43.1]} 33. b4
{[%clk 0:00:41.8]} 33... cxb4 {[%clk 0:00:42]} 34. Bxb4 {[%clk 0:00:42.7]} 34...
Nge5 {[%clk 0:00:31.2]} 35. Bc3 {[%clk 0:00:29.4]} 35... Nd7 {[%clk 0:00:24.8]}
36. Rb4 {[%clk 0:00:20.5]} 36... Nc5 {[%clk 0:00:25.1]} 37. Nb6 {[%clk
0:00:17.4]} 37... Rd8 {[%clk 0:00:22.1]} 38. Bd4 {[%clk 0:00:17.1]} 38... Be7
{[%clk 0:00:18.9]} 39. Bxc5 {[%clk 0:00:12.6]} 39... dxc5 {[%clk 0:00:19.8]} 40.
Rxd8 {[%clk 0:00:13.5]} 40... Bxd8 {[%clk 0:00:12.8]} 41. Rb2 {[%clk 0:00:11.7]}
41... Ne5 {[%clk 0:00:11.8]} 42. Qd1 {[%clk 0:00:08.6]} 42... Bc7 {[%clk
0:00:09.3]} 43. Nd5 {[%clk 0:00:07.2]} 43... Bxa5 {[%clk 0:00:08.6]} 44. Rxb7+
{[%clk 0:00:07.2]} 44... Kf8 {[%clk 0:00:09.2]} 45. Nc7 {[%clk 0:00:04.7]} 45...
Bxc7 {[%clk 0:00:04.6]} 46. Qd2 {[%clk 0:00:03.6]} 46... Qc6 {[%clk 0:00:04.2]}
47. Rb3 {[%clk 0:00:01.1]} 47... c4 {[%clk 0:00:04.2]} 0-1

[Event "*** Titled Tuesday Blitz"]
[Site "Chess.com"]
[Date "2020.04.28"]
[Round "4"]
[White "GeorgMeier"]
[Black "Gahan-MG"]
[Result "0-1"]
[WhiteElo "3001"]
[BlackElo "2677"]
[TimeControl "180+1"]
[EndTime "10:41:14 PDT"]
[Termination "Gahan-MG won by resignation"]

1. Nf3 {[%clk 0:03:00.9]} 1... Nf6 {[%clk 0:02:59.1]} 2. g3 {[%clk 0:03:01.2]}
2... g6 {[%clk 0:02:59.4]} 3. Bg2 {[%clk 0:03:01.6]} 3... Bg7 {[%clk 0:03:00.1]}
4. d4 {[%clk 0:03:02.3]} 4... O-O {[%clk 0:03:00.1]} 5. O-O {[%clk 0:03:03.2]}
5... d5 {[%clk 0:03:00.7]} 6. c4 {[%clk 0:03:03.1]} 6... Nc6 {[%clk 0:03:01.2]}
7. cxd5 {[%clk 0:03:02.8]} 7... Nxd5 {[%clk 0:03:02.1]} 8. Nc3 {[%clk
0:03:03.3]} 8... Nb6 {[%clk 0:03:02.6]} 9. d5 {[%clk 0:03:02.3]} 9... Na5 {[%clk
0:03:02.4]} 10. e4 {[%clk 0:03:01.7]} 10... c6 {[%clk 0:03:02.9]} 11. Bf4 {[%clk
0:03:02.2]} 11... cxd5 {[%clk 0:03:02.8]} 12. Nxd5 {[%clk 0:03:02.7]} 12... Nxd5
{[%clk 0:03:02.7]} 13. exd5 {[%clk 0:03:03.6]} 13... Bxb2 {[%clk 0:02:53.9]} 14.
Rb1 {[%clk 0:03:02.9]} 14... Bg7 {[%clk 0:02:53.5]} 15. Rc1 {[%clk 0:03:01]}
15... b6 {[%clk 0:02:47.5]} 16. Bc7 {[%clk 0:02:14.9]} 16... Qe8 {[%clk
0:02:45.1]} 17. d6 {[%clk 0:02:01.7]} 17... e5 {[%clk 0:02:21.4]} 18. Nxe5
{[%clk 0:01:51.2]} 18... Bxe5 {[%clk 0:02:17.4]} 19. Bxa8 {[%clk 0:01:50.2]}
19... Qd7 {[%clk 0:01:59.6]} 20. Re1 {[%clk 0:01:47.7]} 20... Bf6 {[%clk
0:01:56.6]} 21. Bf3 {[%clk 0:01:39.5]} 21... h5 {[%clk 0:01:55.7]} 22. Qd3
{[%clk 0:01:30.7]} 22... Kg7 {[%clk 0:01:52.8]} 23. Rcd1 {[%clk 0:01:12.8]}
23... Nb7 {[%clk 0:01:51.9]} 24. Qa6 {[%clk 0:00:56.8]} 24... Nc5 {[%clk
0:01:51.1]} 25. Qxa7 {[%clk 0:00:56.9]} 25... Qf5 {[%clk 0:01:48.2]} 26. Bg2
{[%clk 0:00:54.9]} 26... Nd3 {[%clk 0:01:45.3]} 27. Qxb6 {[%clk 0:00:54.7]}
27... Nxe1 {[%clk 0:01:42.9]} 28. Rxe1 {[%clk 0:00:54.9]} 28... h4 {[%clk
0:01:36.7]} 29. a4 {[%clk 0:00:53.8]} 29... h3 {[%clk 0:01:33.7]} 30. Bc6 {[%clk
0:00:48.5]} 30... Bc3 {[%clk 0:01:31]} 31. Rc1 {[%clk 0:00:40.7]} 31... Qf6
{[%clk 0:01:30.8]} 32. d7 {[%clk 0:00:36.4]} 32... Bd4 {[%clk 0:01:31]} 33.
dxc8=Q {[%clk 0:00:19.2]} 33... Rxc8 {[%clk 0:01:23]} 34. Qa5 {[%clk 0:00:18.3]}
34... Qxf2+ {[%clk 0:01:14.2]} 35. Kh1 {[%clk 0:00:18.6]} 35... Qf6 {[%clk
0:00:31.8]} 36. Bb7 {[%clk 0:00:09.3]} 36... Re8 {[%clk 0:00:20.5]} 37. Rd1
{[%clk 0:00:08.4]} 37... Re2 {[%clk 0:00:16.9]} 38. Qd5 {[%clk 0:00:06.8]} 38...
Rd2 {[%clk 0:00:07.4]} 39. Rb1 {[%clk 0:00:05]} 39... Qf2 {[%clk 0:00:06.7]} 40.
Be5+ {[%clk 0:00:04.1]} 40... Kh7 {[%clk 0:00:06.6]} 41. g4 {[%clk 0:00:01.7]}
41... Bxe5 {[%clk 0:00:05]} 42. Qxe5 {[%clk 0:00:02.5]} 42... Re2 {[%clk
0:00:03.8]} 43. Qg3 {[%clk 0:00:02.5]} 43... Qd4 {[%clk 0:00:03.5]} 44. Qxh3+
{[%clk 0:00:02.1]} 44... Kg7 {[%clk 0:00:04.1]} 45. Rg1 {[%clk 0:00:02.4]} 45...
Qb6 {[%clk 0:00:03.8]} 46. Bg2 {[%clk 0:00:02.9]} 46... Qd6 {[%clk 0:00:03.3]}
47. Qg3 {[%clk 0:00:03.3]} 47... Qb4 {[%clk 0:00:03.3]} 48. g5 {[%clk
0:00:03.7]} 48... Qxa4 {[%clk 0:00:03.4]} 49. Qe5+ {[%clk 0:00:04]} 49... Rxe5
{[%clk 0:00:03]} 0-1

[Event "*** Titled Tuesday Blitz"]
[Site "Chess.com"]
[Date "2020.04.28"]
[Round "4"]
[White "Soltan49"]
[Black "Sjakkerntobi"]
[Result "1-0"]
[WhiteElo "2421"]
[BlackElo "2191"]
[TimeControl "180+1"]
[EndTime "10:41:15 PDT"]
[Termination "Soltan49 won by checkmate"]

1. e4 {[%clk 0:03:00.9]} 1... e6 {[%clk 0:03:00]} 2. d4 {[%clk 0:03:00.7]} 2...
d5 {[%clk 0:03:00.2]} 3. Nd2 {[%clk 0:03:01.1]} 3... a6 {[%clk 0:02:59.6]} 4. c3
{[%clk 0:02:57]} 4... c5 {[%clk 0:02:58.6]} 5. exd5 {[%clk 0:02:56.3]} 5... exd5
{[%clk 0:02:58.4]} 6. dxc5 {[%clk 0:02:56.4]} 6... Bxc5 {[%clk 0:02:59.3]} 7.
Ngf3 {[%clk 0:02:56.8]} 7... Nf6 {[%clk 0:02:59.4]} 8. Bd3 {[%clk 0:02:55.7]}
8... O-O {[%clk 0:02:59.3]} 9. O-O {[%clk 0:02:55.4]} 9... Nc6 {[%clk
0:02:59.2]} 10. h3 {[%clk 0:02:55.4]} 10... Bb6 {[%clk 0:02:56]} 11. Nb3 {[%clk
0:02:53.8]} 11... Re8 {[%clk 0:02:56.3]} 12. Bg5 {[%clk 0:02:53.5]} 12... h6
{[%clk 0:02:56.2]} 13. Bh4 {[%clk 0:02:46.8]} 13... g5 {[%clk 0:02:56]} 14. Bg3
{[%clk 0:02:47.1]} 14... Ne4 {[%clk 0:02:56]} 15. Bxe4 {[%clk 0:02:45.5]} 15...
dxe4 {[%clk 0:02:56.9]} 16. Nfd4 {[%clk 0:02:36.5]} 16... Nxd4 {[%clk 0:02:56]}
17. cxd4 {[%clk 0:02:37.4]} 17... Be6 {[%clk 0:02:41.3]} 18. Qh5 {[%clk
0:02:29.6]} 18... Qf6 {[%clk 0:02:18.2]} 19. Nc5 {[%clk 0:02:27.3]} 19... Bd5
{[%clk 0:02:12.1]} 20. Nd7 {[%clk 0:02:15.6]} 20... Qe6 {[%clk 0:02:04.4]} 21.
Nxb6 {[%clk 0:01:57.2]} 21... Qxb6 {[%clk 0:02:05.3]} 22. h4 {[%clk 0:01:57]}
22... Qg6 {[%clk 0:01:57]} 23. Qxg6+ {[%clk 0:01:56]} 23... fxg6 {[%clk
0:01:57.1]} 24. hxg5 {[%clk 0:01:56.9]} 24... hxg5 {[%clk 0:01:58]} 25. Be5
{[%clk 0:01:54.7]} 25... Kf7 {[%clk 0:01:56.8]} 26. a3 {[%clk 0:01:51.7]} 26...
Ke6 {[%clk 0:01:55.1]} 27. Rac1 {[%clk 0:01:51.7]} 27... Rac8 {[%clk 0:01:55.1]}
28. Rfe1 {[%clk 0:01:45.2]} 28... Rc6 {[%clk 0:01:48.9]} 29. Rxc6+ {[%clk
0:01:43.4]} 29... Bxc6 {[%clk 0:01:48.9]} 30. Re3 {[%clk 0:01:39]} 30... Bd5
{[%clk 0:01:39.9]} 31. Rg3 {[%clk 0:01:33.3]} 31... Kf5 {[%clk 0:01:36.7]} 32.
Rc3 {[%clk 0:01:33.1]} 32... Re6 {[%clk 0:01:26]} 33. Rc7 {[%clk 0:01:28.6]}
33... Rc6 {[%clk 0:01:25.9]} 34. Rd7 {[%clk 0:01:22.8]} 34... Ke6 {[%clk
0:01:21.5]} 35. Rg7 {[%clk 0:01:21.1]} 35... Kf5 {[%clk 0:01:20.4]} 36. Kh2
{[%clk 0:01:19]} 36... Rc2 {[%clk 0:01:16.9]} 37. Rd7 {[%clk 0:01:13.2]} 37...
Bc6 {[%clk 0:01:07.7]} 38. Rf7+ {[%clk 0:01:09.6]} 38... Kg4 {[%clk 0:01:05.7]}
39. b4 {[%clk 0:01:06.9]} 39... Bd5 {[%clk 0:00:46.5]} 40. Rf6 {[%clk 0:00:57]}
40... Rc6 {[%clk 0:00:41.2]} 41. Rf8 {[%clk 0:00:43.6]} 41... Rc2 {[%clk
0:00:38.4]} 42. a4 {[%clk 0:00:33.3]} 42... Ra2 {[%clk 0:00:31.4]} 43. a5 {[%clk
0:00:15.1]} 43... Rc2 {[%clk 0:00:30]} 44. Bd6 {[%clk 0:00:14.6]} 44... Bc6
{[%clk 0:00:17.9]} 45. Rf6 {[%clk 0:00:09.4]} 45... Rd2 {[%clk 0:00:16]} 46. Be5
{[%clk 0:00:05.3]} 46... Rc2 {[%clk 0:00:15]} 47. Rxg6 {[%clk 0:00:04.4]} 47...
e3 {[%clk 0:00:15.4]} 48. f3+ {[%clk 0:00:04.2]} 48... Kf5 {[%clk 0:00:16]} 49.
Rf6# {[%clk 0:00:03.8]} 1-0

[Event "*** Titled Tuesday Blitz"]
[Site "Chess.com"]
[Date "2020.04.28"]
[Round "4"]
[White "VolodymyrMolyboha"]
[Black "Funkmaus"]
[Result "1-0"]
[WhiteElo "2423"]
[BlackElo "2198"]
[TimeControl "180+1"]
[EndTime "10:41:16 PDT"]
[Termination "VolodymyrMolyboha won on time"]

1. e4 {[%clk 0:03:00.9]} 1... c6 {[%clk 0:02:55.4]} 2. d3 {[%clk 0:03:00.3]}
2... d5 {[%clk 0:02:56.3]} 3. Nd2 {[%clk 0:03:00.8]} 3... dxe4 {[%clk
0:02:56.1]} 4. dxe4 {[%clk 0:03:00.5]} 4... e5 {[%clk 0:02:54.6]} 5. Ngf3 {[%clk
0:03:00.4]} 5... Qc7 {[%clk 0:02:50.8]} 6. Bc4 {[%clk 0:02:57.5]} 6... Bc5
{[%clk 0:02:40]} 7. a4 {[%clk 0:02:46.7]} 7... Nf6 {[%clk 0:02:36.2]} 8. c3
{[%clk 0:02:45.2]} 8... a5 {[%clk 0:02:35.1]} 9. O-O {[%clk 0:02:41.4]} 9... O-O
{[%clk 0:02:34.2]} 10. Qc2 {[%clk 0:02:36.6]} 10... Bg4 {[%clk 0:02:25.3]} 11.
h3 {[%clk 0:02:35.9]} 11... Bh5 {[%clk 0:02:25.1]} 12. Re1 {[%clk 0:02:35.6]}
12... Nbd7 {[%clk 0:02:24.2]} 13. Nf1 {[%clk 0:02:33.7]} 13... Bxf3 {[%clk
0:02:19.2]} 14. gxf3 {[%clk 0:02:33.1]} 14... Nb6 {[%clk 0:02:06.4]} 15. Bb3
{[%clk 0:02:32]} 15... Qc8 {[%clk 0:01:57]} 16. Kh2 {[%clk 0:02:31.6]} 16...
Nbd7 {[%clk 0:01:38.9]} 17. Ng3 {[%clk 0:02:30.7]} 17... b5 {[%clk 0:01:30.6]}
18. Rg1 {[%clk 0:02:27.5]} 18... g6 {[%clk 0:01:19.2]} 19. Nf5 {[%clk
0:02:24.7]} 19... Nh5 {[%clk 0:01:11.9]} 20. Bh6 {[%clk 0:02:18.5]} 20... Re8
{[%clk 0:01:11]} 21. Rad1 {[%clk 0:01:58.7]} 21... Ndf6 {[%clk 0:01:03.6]} 22.
Bg5 {[%clk 0:01:55.3]} 22... Ra7 {[%clk 0:00:41.5]} 23. Rd2 {[%clk 0:01:40.9]}
23... Rd7 {[%clk 0:00:39.5]} 24. Rxd7 {[%clk 0:01:34.4]} 24... Qxd7 {[%clk
0:00:40.1]} 25. Nh6+ {[%clk 0:01:31.7]} 25... Kg7 {[%clk 0:00:35.7]} 26. Nxf7
{[%clk 0:01:23.6]} 26... bxa4 {[%clk 0:00:30.9]} 27. Bc4 {[%clk 0:01:23.5]}
27... Nf4 {[%clk 0:00:29.9]} 28. Bxf4 {[%clk 0:01:13.3]} 28... exf4 {[%clk
0:00:30.6]} 29. Rd1 {[%clk 0:01:10.2]} 29... Qe7 {[%clk 0:00:26.8]} 30. Ng5
{[%clk 0:01:05.3]} 30... Nd5 {[%clk 0:00:21.2]} 31. Rg1 {[%clk 0:00:49.8]} 31...
h6 {[%clk 0:00:12.5]} 32. exd5 {[%clk 0:00:39.2]} 32... hxg5 {[%clk 0:00:13.1]}
33. dxc6 {[%clk 0:00:39]} 33... Rc8 {[%clk 0:00:11.1]} 34. Bd5 {[%clk
0:00:35.7]} 34... Qf6 {[%clk 0:00:09.2]} 35. Qe4 {[%clk 0:00:32.4]} 35... Rh8
{[%clk 0:00:08.6]} 36. c7 {[%clk 0:00:22.5]} 36... Bxf2 {[%clk 0:00:07.5]} 37.
Rd1 {[%clk 0:00:18.3]} 37... Bg3+ {[%clk 0:00:08.3]} 38. Kg2 {[%clk 0:00:18.5]}
38... Rc8 {[%clk 0:00:06.4]} 39. Qc4 {[%clk 0:00:12.8]} 39... a3 {[%clk
0:00:06.1]} 40. bxa3 {[%clk 0:00:11]} 40... Qc6 {[%clk 0:00:06]} 41. Qxc6 {[%clk
0:00:10.3]} 1-0

[Event "*** Titled Tuesday Blitz"]
[Site "Chess.com"]
[Date "2020.04.28"]
[Round "4"]
[White "Cukiero"]
[Black "DDTerziev04"]
[Result "0-1"]
[WhiteElo "2478"]
[BlackElo "2324"]
[TimeControl "180+1"]
[EndTime "10:41:18 PDT"]
[Termination "DDTerziev04 won by resignation"]

1. e4 {[%clk 0:03:00.9]} 1... e6 {[%clk 0:02:59.6]} 2. d4 {[%clk 0:02:56.9]}
2... d5 {[%clk 0:02:59.8]} 3. Nd2 {[%clk 0:02:56.8]} 3... c5 {[%clk 0:02:58.7]}
4. exd5 {[%clk 0:02:55.3]} 4... exd5 {[%clk 0:02:59.6]} 5. Ngf3 {[%clk
0:02:53.9]} 5... Nc6 {[%clk 0:02:59.8]} 6. Bb5 {[%clk 0:02:52]} 6... cxd4 {[%clk
0:03:00.2]} 7. Nxd4 {[%clk 0:02:49.9]} 7... Bd7 {[%clk 0:02:59.2]} 8. Qe2+
{[%clk 0:02:48.8]} 8... Be7 {[%clk 0:02:58.2]} 9. Bxc6 {[%clk 0:02:35]} 9...
bxc6 {[%clk 0:02:57.7]} 10. O-O {[%clk 0:02:34.6]} 10... Nf6 {[%clk 0:02:51.7]}
11. Re1 {[%clk 0:02:34.4]} 11... c5 {[%clk 0:02:51.3]} 12. N4b3 {[%clk
0:02:24.8]} 12... Be6 {[%clk 0:02:50.2]} 13. Nf3 {[%clk 0:02:10.6]} 13... h6
{[%clk 0:02:49.1]} 14. Qb5+ {[%clk 0:02:02.5]} 14... Qd7 {[%clk 0:02:39.9]} 15.
Qxd7+ {[%clk 0:02:00.4]} 15... Kxd7 {[%clk 0:02:39.7]} 16. Ne5+ {[%clk
0:01:59.5]} 16... Ke8 {[%clk 0:02:25.4]} 17. c3 {[%clk 0:01:53.5]} 17... Rc8
{[%clk 0:02:20.1]} 18. Be3 {[%clk 0:01:51.1]} 18... Nd7 {[%clk 0:02:18.5]} 19.
Nxd7 {[%clk 0:01:46.3]} 19... Kxd7 {[%clk 0:02:19.4]} 20. Rad1 {[%clk
0:01:43.2]} 20... Rhd8 {[%clk 0:02:16]} 21. f4 {[%clk 0:01:42.6]} 21... Ke8
{[%clk 0:02:12.1]} 22. Rd2 {[%clk 0:01:40.7]} 22... Kf8 {[%clk 0:02:08.6]} 23.
h3 {[%clk 0:01:36.3]} 23... h5 {[%clk 0:02:06.8]} 24. Kh2 {[%clk 0:01:30.2]}
24... g6 {[%clk 0:02:04]} 25. g3 {[%clk 0:01:29.8]} 25... Rd7 {[%clk 0:01:45.5]}
26. Rg1 {[%clk 0:01:21.7]} 26... a5 {[%clk 0:01:33.6]} 27. Nxa5 {[%clk 0:01:15]}
27... Ra7 {[%clk 0:01:32.9]} 28. b4 {[%clk 0:01:11.2]} 28... Raa8 {[%clk
0:01:20.9]} 29. a3 {[%clk 0:01:05]} 29... cxb4 {[%clk 0:01:19.9]} 30. cxb4
{[%clk 0:01:03.1]} 30... Rc3 {[%clk 0:01:19.1]} 31. Re1 {[%clk 0:00:50.5]} 31...
Rxa3 {[%clk 0:01:16.9]} 32. Nc6 {[%clk 0:00:50.5]} 32... Ra2 {[%clk 0:01:06.2]}
33. Ree2 {[%clk 0:00:41.2]} 33... Rxd2 {[%clk 0:01:03.5]} 34. Rxd2 {[%clk
0:00:42.1]} 34... Ra3 {[%clk 0:00:56.2]} 35. Bd4 {[%clk 0:00:30.6]} 35... Rb3
{[%clk 0:00:51.2]} 36. Ra2 {[%clk 0:00:29.7]} 36... Bd7 {[%clk 0:00:37.8]} 37.
Ra8+ {[%clk 0:00:28.6]} 37... Be8 {[%clk 0:00:37.8]} 38. Ne5 {[%clk 0:00:21.7]}
38... Bd6 {[%clk 0:00:24.8]} 39. Nd7+ {[%clk 0:00:17.1]} 39... Ke7 {[%clk
0:00:23.7]} 40. Nf6 {[%clk 0:00:17.2]} 40... Bc6 {[%clk 0:00:17]} 41. Ra7+
{[%clk 0:00:17.3]} 41... Ke6 {[%clk 0:00:15.9]} 42. Ra6 {[%clk 0:00:17.5]} 42...
Rxb4 {[%clk 0:00:14.2]} 43. Be5 {[%clk 0:00:15.6]} 43... Bxe5 {[%clk 0:00:13.2]}
44. fxe5 {[%clk 0:00:16]} 44... Rc4 {[%clk 0:00:12.9]} 45. g4 {[%clk 0:00:11.5]}
45... Kxe5 {[%clk 0:00:12.7]} 46. Nh7 {[%clk 0:00:11.1]} 46... hxg4 {[%clk
0:00:11.9]} 47. hxg4 {[%clk 0:00:11.5]} 47... Rc2+ {[%clk 0:00:12.1]} 48. Kg3
{[%clk 0:00:11.4]} 48... d4 {[%clk 0:00:12]} 49. g5 {[%clk 0:00:10.9]} 49... d3
{[%clk 0:00:11.1]} 50. Nf6 {[%clk 0:00:10.2]} 50... d2 {[%clk 0:00:10.9]} 51.
Ra5+ {[%clk 0:00:10.2]} 51... Kd4 {[%clk 0:00:09.4]} 52. Ra1 {[%clk 0:00:08.3]}
52... Rc1 {[%clk 0:00:09]} 53. Ra8 {[%clk 0:00:08.2]} 53... d1=Q {[%clk
0:00:08.1]} 54. Rd8+ {[%clk 0:00:08]} 54... Kc5 {[%clk 0:00:08]} 55. Rxd1 {[%clk
0:00:07.5]} 55... Rxd1 {[%clk 0:00:08.9]} 0-1